[Event "Early-Titled-Tuesday-Blitz-March-05-2024"]
[Site "Chess.com"]
[Date "2024.03.05"]
[Round "2"]
[White "AlexeiShirov"]
[Black "ReinisUz"]
[Result "1-0"]
[WhiteElo "2841"]
[BlackElo "2411"]
[TimeControl "180+1"]
[EndTime "8:16:23 PST"]
[Termination "AlexeiShirov won by resignation"]

1. e4 {[%clk 0:03:00.9]} 1... e5 {[%clk 0:02:52.9]} 2. Nf3 {[%clk 0:03:00.8]}
2... Nc6 {[%clk 0:02:52.3]} 3. Bb5 {[%clk 0:03:00.6]} 3... Nf6 {[%clk
0:02:32.5]} 4. O-O {[%clk 0:02:58.7]} 4... Nxe4 {[%clk 0:02:29.1]} 5. Re1 {[%clk
0:02:56.7]} 5... Nd6 {[%clk 0:02:28.5]} 6. a4 {[%clk 0:02:56.5]} 6... Be7 {[%clk
0:02:21.9]} 7. Nc3 {[%clk 0:02:55.8]} 7... O-O {[%clk 0:02:21]} 8. d4 {[%clk
0:02:51.7]} 8... Nxd4 {[%clk 0:02:08.6]} 9. Nxd4 {[%clk 0:02:48.9]} 9... exd4
{[%clk 0:02:08.9]} 10. Nd5 {[%clk 0:02:47]} 10... Bf6 {[%clk 0:02:05.8]} 11. Bd3
{[%clk 0:02:23]} 11... c6 {[%clk 0:01:54.6]} 12. Bf4 {[%clk 0:02:21.9]} 12...
cxd5 {[%clk 0:01:41.4]} 13. Bxd6 {[%clk 0:02:17.7]} 13... Re8 {[%clk 0:01:41.4]}
14. Rxe8+ {[%clk 0:01:18.6]} 14... Qxe8 {[%clk 0:01:39.3]} 15. Qd2 {[%clk
0:01:18.4]} 15... b6 {[%clk 0:00:48.1]} 16. Re1 {[%clk 0:01:17.5]} 16... Qd8
{[%clk 0:00:48.4]} 17. Bc7 {[%clk 0:01:17.5]} 17... Qf8 {[%clk 0:00:47.9]} 18.
Qf4 {[%clk 0:01:17.5]} 18... Bb7 {[%clk 0:00:41.5]} 19. Qf5 {[%clk 0:01:17]}
19... g6 {[%clk 0:00:18.5]} 20. Qxf6 {[%clk 0:01:17]} 1-0

[Event "Early-Titled-Tuesday-Blitz-March-05-2024"]
[Site "Chess.com"]
[Date "2024.03.05"]
[Round "2"]
[White "maurovargas01"]
[Black "Al_Shima"]
[Result "0-1"]
[WhiteElo "1835"]
[BlackElo "2421"]
[TimeControl "180+1"]
[EndTime "8:16:23 PST"]
[Termination "Al_Shima won by resignation"]

1. e4 {[%clk 0:02:59.3]} 1... c6 {[%clk 0:02:59.9]} 2. d3 {[%clk 0:02:54.9]}
2... d5 {[%clk 0:02:59.4]} 3. Nc3 {[%clk 0:02:53]} 3... Nf6 {[%clk 0:02:58.2]}
4. e5 {[%clk 0:02:52.7]} 4... Nfd7 {[%clk 0:02:57.6]} 5. e6 {[%clk 0:02:52.7]}
5... fxe6 {[%clk 0:02:57.7]} 6. d4 {[%clk 0:02:50.8]} 6... Nf6 {[%clk
0:02:48.1]} 7. Bd3 {[%clk 0:02:49.4]} 7... g6 {[%clk 0:02:47.7]} 8. Qf3 {[%clk
0:02:45.4]} 8... Bg7 {[%clk 0:02:47.9]} 9. Qg3 {[%clk 0:02:45.3]} 9... O-O
{[%clk 0:02:47.6]} 10. Nf3 {[%clk 0:02:45.1]} 10... Nh5 {[%clk 0:02:42.8]} 11.
Qh4 {[%clk 0:02:41.3]} 11... Nd7 {[%clk 0:02:32.2]} 12. g4 {[%clk 0:02:40.9]}
12... Nf4 {[%clk 0:02:18.3]} 13. Bxf4 {[%clk 0:02:38.1]} 13... Rxf4 {[%clk
0:02:19.2]} 14. Ng5 {[%clk 0:02:38.1]} 14... Nf6 {[%clk 0:02:18.4]} 15. h3
{[%clk 0:01:52.4]} 15... Rxd4 {[%clk 0:02:04.5]} 16. O-O-O {[%clk 0:01:48.6]}
16... b5 {[%clk 0:01:46.8]} 17. Ne2 {[%clk 0:01:46.3]} 17... Ra4 {[%clk
0:01:44.7]} 18. Nf4 {[%clk 0:01:42.8]} 18... Rxf4 {[%clk 0:01:42.7]} 19. Rhe1
{[%clk 0:01:37.4]} 19... Ra4 {[%clk 0:01:38.3]} 20. Re3 {[%clk 0:01:30.2]} 20...
Rxa2 {[%clk 0:01:32]} 21. Rf3 {[%clk 0:01:28.7]} 21... h6 {[%clk 0:01:12.8]} 22.
Bxg6 {[%clk 0:01:18.8]} 22... hxg5 {[%clk 0:01:12]} 23. Rxf6 {[%clk 0:01:10.6]}
23... gxh4 {[%clk 0:01:07.8]} 24. Bf7+ {[%clk 0:01:10.2]} 24... Kh8 {[%clk
0:01:02.3]} 25. Rf3 {[%clk 0:01:10.3]} 25... Qa5 {[%clk 0:01:00.2]} 26. Rd4
{[%clk 0:01:06.1]} 26... Bxd4 {[%clk 0:00:59.5]} 0-1

[Event "Early-Titled-Tuesday-Blitz-March-05-2024"]
[Site "Chess.com"]
[Date "2024.03.05"]
[Round "2"]
[White "JonasEilenberg"]
[Black "KhalilMousavi98"]
[Result "0-1"]
[WhiteElo "2547"]
[BlackElo "2817"]
[TimeControl "180+1"]
[EndTime "8:16:25 PST"]
[Termination "KhalilMousavi98 won by checkmate"]

1. d4 {[%clk 0:03:00.9]} 1... d5 {[%clk 0:02:57.1]} 2. c4 {[%clk 0:03:01.2]}
2... e6 {[%clk 0:02:57.7]} 3. Nc3 {[%clk 0:03:01.1]} 3... Nf6 {[%clk 0:02:57.3]}
4. cxd5 {[%clk 0:03:01.2]} 4... exd5 {[%clk 0:02:56.3]} 5. Bg5 {[%clk
0:03:01.3]} 5... c6 {[%clk 0:02:52.3]} 6. e3 {[%clk 0:03:01.4]} 6... h6 {[%clk
0:02:52.8]} 7. Bh4 {[%clk 0:03:00.4]} 7... Be7 {[%clk 0:02:51.7]} 8. Bd3 {[%clk
0:03:01]} 8... O-O {[%clk 0:02:52]} 9. Nge2 {[%clk 0:03:01.5]} 9... Ne8 {[%clk
0:02:51.3]} 10. Bg3 {[%clk 0:02:56.8]} 10... Nd6 {[%clk 0:02:50.8]} 11. Qd2
{[%clk 0:02:56.2]} 11... Nd7 {[%clk 0:02:45.2]} 12. a4 {[%clk 0:02:52.8]} 12...
Re8 {[%clk 0:02:45]} 13. a5 {[%clk 0:02:50.9]} 13... Nf6 {[%clk 0:02:39.6]} 14.
Qc2 {[%clk 0:02:46.2]} 14... Bf8 {[%clk 0:02:36.4]} 15. O-O {[%clk 0:02:45.6]}
15... Bg4 {[%clk 0:02:33.4]} 16. Rae1 {[%clk 0:02:44.7]} 16... Bxe2 {[%clk
0:02:31.6]} 17. Rxe2 {[%clk 0:02:37.8]} 17... Nfe4 {[%clk 0:02:30.5]} 18. a6
{[%clk 0:02:34.9]} 18... b5 {[%clk 0:02:27.3]} 19. Bxe4 {[%clk 0:02:27.4]} 19...
dxe4 {[%clk 0:02:20.7]} 20. Bxd6 {[%clk 0:02:22.7]} 20... Bxd6 {[%clk
0:02:18.1]} 21. Nxe4 {[%clk 0:02:23.2]} 21... Bxh2+ {[%clk 0:01:47.3]} 22. Kxh2
{[%clk 0:02:24.1]} 22... Qh4+ {[%clk 0:01:47.8]} 23. Kg1 {[%clk 0:02:24.3]}
23... Rxe4 {[%clk 0:01:48]} 24. Qxc6 {[%clk 0:02:15.2]} 24... Rae8 {[%clk
0:01:42.6]} 25. Rc1 {[%clk 0:02:12.3]} 25... R8e6 {[%clk 0:01:34.3]} 26. Qa8+
{[%clk 0:02:03.9]} 26... Kh7 {[%clk 0:01:34.4]} 27. Rc8 {[%clk 0:02:02.9]} 27...
Rxd4 {[%clk 0:01:10]} 28. Rc1 {[%clk 0:01:26.2]} 28... Rg4 {[%clk 0:00:55]} 29.
Qxa7 {[%clk 0:01:13.6]} 29... Rxg2+ {[%clk 0:00:54.5]} 30. Kxg2 {[%clk
0:01:10.7]} 30... Rg6+ {[%clk 0:00:53.7]} 31. Kf3 {[%clk 0:01:11.2]} 31... Qg4#
{[%clk 0:00:54.1]} 0-1

[Event "Early-Titled-Tuesday-Blitz-March-05-2024"]
[Site "Chess.com"]
[Date "2024.03.05"]
[Round "2"]
[White "bulletteemo"]
[Black "scarabee43"]
[Result "0-1"]
[WhiteElo "2588"]
[BlackElo "2905"]
[TimeControl "180+1"]
[EndTime "8:16:27 PST"]
[Termination "scarabee43 won on time"]

1. e4 {[%clk 0:03:00.9]} 1... c5 {[%clk 0:03:00]} 2. Nf3 {[%clk 0:03:00.6]} 2...
e6 {[%clk 0:02:59.9]} 3. d4 {[%clk 0:03:01]} 3... cxd4 {[%clk 0:03:00.6]} 4.
Nxd4 {[%clk 0:03:01.9]} 4... Nc6 {[%clk 0:03:01]} 5. Nc3 {[%clk 0:03:02]} 5...
Qc7 {[%clk 0:03:01.3]} 6. a3 {[%clk 0:02:57.4]} 6... a6 {[%clk 0:02:58.9]} 7.
Be3 {[%clk 0:02:52.8]} 7... Nf6 {[%clk 0:02:54.7]} 8. f4 {[%clk 0:02:40.9]} 8...
d6 {[%clk 0:02:46.9]} 9. Qf3 {[%clk 0:02:27.4]} 9... Be7 {[%clk 0:02:34.2]} 10.
O-O-O {[%clk 0:02:10.1]} 10... Nxd4 {[%clk 0:02:22.7]} 11. Rxd4 {[%clk
0:02:09.8]} 11... b5 {[%clk 0:02:23.3]} 12. Be2 {[%clk 0:00:58.5]} 12... Bb7
{[%clk 0:02:22]} 13. g4 {[%clk 0:00:51.3]} 13... d5 {[%clk 0:02:08.3]} 14. e5
{[%clk 0:00:35.8]} 14... Nd7 {[%clk 0:02:08.4]} 15. Rdd1 {[%clk 0:00:30]} 15...
d4 {[%clk 0:02:06.9]} 16. Ne4 {[%clk 0:00:27.5]} 16... dxe3 {[%clk 0:02:05.5]}
17. Qxe3 {[%clk 0:00:26]} 17... O-O {[%clk 0:02:02.3]} 18. g5 {[%clk 0:00:20.5]}
18... Rac8 {[%clk 0:01:59.8]} 19. Rd2 {[%clk 0:00:17]} 19... Nc5 {[%clk
0:01:56.4]} 20. Nf6+ {[%clk 0:00:15.3]} 20... Bxf6 {[%clk 0:01:52.1]} 21. gxf6
{[%clk 0:00:14.7]} 21... Bxh1 {[%clk 0:01:52.3]} 22. Qg3 {[%clk 0:00:10.7]}
22... g6 {[%clk 0:01:51.3]} 23. Qh3 {[%clk 0:00:08.9]} 23... Kh8 {[%clk
0:01:43.6]} 24. b4 {[%clk 0:00:07.4]} 24... Ne4 {[%clk 0:01:39.5]} 0-1

[Event "Early-Titled-Tuesday-Blitz-March-05-2024"]
[Site "Chess.com"]
[Date "2024.03.05"]
[Round "2"]
[White "LionKing2367890"]
[Black "JG-17"]
[Result "0-1"]
[WhiteElo "2228"]
[BlackElo "2482"]
[TimeControl "180+1"]
[EndTime "8:16:33 PST"]
[Termination "JG-17 won by resignation"]

1. e4 {[%clk 0:03:00.9]} 1... c6 {[%clk 0:02:59.7]} 2. d4 {[%clk 0:03:00.5]}
2... d5 {[%clk 0:02:57.6]} 3. e5 {[%clk 0:03:00.8]} 3... c5 {[%clk 0:02:56.4]}
4. dxc5 {[%clk 0:03:00.4]} 4... e6 {[%clk 0:02:56.8]} 5. a3 {[%clk 0:03:00]}
5... Bxc5 {[%clk 0:02:53.5]} 6. b4 {[%clk 0:03:00]} 6... Bb6 {[%clk 0:02:52.7]}
7. Bb2 {[%clk 0:03:00]} 7... Nc6 {[%clk 0:02:52.4]} 8. Nd2 {[%clk 0:03:00.2]}
8... Nge7 {[%clk 0:02:52.8]} 9. Ngf3 {[%clk 0:03:00.4]} 9... Ng6 {[%clk
0:02:53.2]} 10. Bb5 {[%clk 0:02:57.2]} 10... O-O {[%clk 0:02:53]} 11. Bxc6
{[%clk 0:02:55.9]} 11... bxc6 {[%clk 0:02:52.8]} 12. O-O {[%clk 0:02:56.6]}
12... c5 {[%clk 0:02:38.5]} 13. c4 {[%clk 0:02:54.8]} 13... Bb7 {[%clk
0:02:32.2]} 14. cxd5 {[%clk 0:02:50.2]} 14... Qxd5 {[%clk 0:02:28.8]} 15. bxc5
{[%clk 0:02:48.1]} 15... Bxc5 {[%clk 0:02:26.6]} 16. Rc1 {[%clk 0:02:48.3]}
16... Nf4 {[%clk 0:02:24.8]} 17. Qb3 {[%clk 0:02:40.3]} 17... Nd3 {[%clk
0:02:22.2]} 18. Qxd5 {[%clk 0:02:31]} 18... Bxd5 {[%clk 0:02:23.1]} 19. Rc3
{[%clk 0:02:25.5]} 19... Rab8 {[%clk 0:02:17.6]} 20. Ba1 {[%clk 0:02:20.4]}
20... Bxf3 {[%clk 0:01:34.8]} 21. gxf3 {[%clk 0:02:19]} 21... Rfd8 {[%clk
0:01:24.6]} 22. Ne4 {[%clk 0:02:14.6]} 22... Bb6 {[%clk 0:01:01.4]} 23. Rb3
{[%clk 0:01:50.1]} 23... Bxf2+ {[%clk 0:00:58.1]} 24. Nxf2 {[%clk 0:01:46.9]}
24... Rxb3 {[%clk 0:00:57.6]} 25. Ne4 {[%clk 0:01:46.4]} 25... Rxa3 {[%clk
0:00:52]} 26. Rd1 {[%clk 0:01:45.3]} 26... Rb8 {[%clk 0:00:46.1]} 27. Bc3 {[%clk
0:01:37]} 27... Nf4 {[%clk 0:00:42.1]} 28. Bb4 {[%clk 0:01:36.3]} 28... Rxf3
{[%clk 0:00:40]} 29. Bd6 {[%clk 0:01:33.2]} 29... Rc8 {[%clk 0:00:36.4]} 30. Nc5
{[%clk 0:01:32.9]} 30... h5 {[%clk 0:00:32.4]} 31. Ra1 {[%clk 0:01:32.6]} 31...
Rc3 {[%clk 0:00:30.6]} 32. Ne4 {[%clk 0:01:28.4]} 32... Rc1+ {[%clk 0:00:30.1]}
0-1

[Event "Early-Titled-Tuesday-Blitz-March-05-2024"]
[Site "Chess.com"]
[Date "2024.03.05"]
[Round "2"]
[White "rnanjo"]
[Black "ElVital"]
[Result "1-0"]
[WhiteElo "2578"]
[BlackElo "2347"]
[TimeControl "180+1"]
[EndTime "8:16:36 PST"]
[Termination "rnanjo won by resignation"]

1. e4 {[%clk 0:03:00.3]} 1... g6 {[%clk 0:02:57.9]} 2. d4 {[%clk 0:03:00]} 2...
Bg7 {[%clk 0:02:58.2]} 3. Nc3 {[%clk 0:03:00.4]} 3... d6 {[%clk 0:02:57.8]} 4.
Be3 {[%clk 0:02:59.9]} 4... a6 {[%clk 0:02:57.2]} 5. g4 {[%clk 0:02:59.5]} 5...
b5 {[%clk 0:02:55.3]} 6. Bg2 {[%clk 0:02:59.4]} 6... Bb7 {[%clk 0:02:54.7]} 7.
h4 {[%clk 0:02:59]} 7... b4 {[%clk 0:02:50.7]} 8. Nce2 {[%clk 0:02:35.3]} 8...
Nf6 {[%clk 0:02:48.2]} 9. Ng3 {[%clk 0:02:33.6]} 9... h5 {[%clk 0:02:42.4]} 10.
gxh5 {[%clk 0:02:31.8]} 10... Nxh5 {[%clk 0:02:42.3]} 11. Nxh5 {[%clk
0:02:31.5]} 11... Rxh5 {[%clk 0:02:43.2]} 12. Bf3 {[%clk 0:02:31.9]} 12... Rh8
{[%clk 0:02:42.2]} 13. h5 {[%clk 0:02:31.6]} 13... gxh5 {[%clk 0:02:32.9]} 14.
e5 {[%clk 0:02:29.9]} 14... Qc8 {[%clk 0:02:26.7]} 15. Rxh5 {[%clk 0:02:23.8]}
15... Rxh5 {[%clk 0:02:25]} 16. Bxb7 {[%clk 0:02:23.9]} 16... Qxb7 {[%clk
0:02:07.7]} 17. Qxh5 {[%clk 0:02:23.3]} 17... Qd5 {[%clk 0:01:51.5]} 18. Qg4
{[%clk 0:02:09]} 18... Nc6 {[%clk 0:01:27.2]} 19. Qxg7 {[%clk 0:02:04.5]} 19...
Kd7 {[%clk 0:01:13.9]} 20. Qg4+ {[%clk 0:02:02.2]} 20... e6 {[%clk 0:01:12.6]}
21. Qf3 {[%clk 0:02:02.5]} 21... Qc4 {[%clk 0:00:58.5]} 22. Qxf7+ {[%clk
0:02:00.6]} 22... Ne7 {[%clk 0:00:57.2]} 23. Nf3 {[%clk 0:01:32.4]} 23... Rh8
{[%clk 0:00:56.1]} 24. O-O-O {[%clk 0:01:30.8]} 24... Qxa2 {[%clk 0:00:55.5]}
25. Bg5 {[%clk 0:01:30.1]} 25... Re8 {[%clk 0:00:54.4]} 26. exd6 {[%clk
0:01:29.6]} 26... cxd6 {[%clk 0:00:54.3]} 27. d5 {[%clk 0:01:28]} 27... e5
{[%clk 0:00:43.4]} 28. Qe6+ {[%clk 0:01:15.7]} 1-0

[Event "Early-Titled-Tuesday-Blitz-March-05-2024"]
[Site "Chess.com"]
[Date "2024.03.05"]
[Round "2"]
[White "becemix"]
[Black "DonJuanEGenaro"]
[Result "1-0"]
[WhiteElo "2433"]
[BlackElo "1970"]
[TimeControl "180+1"]
[EndTime "8:16:36 PST"]
[Termination "becemix won by resignation"]

1. e4 {[%clk 0:03:00.9]} 1... e5 {[%clk 0:02:59.3]} 2. Nf3 {[%clk 0:03:00.2]}
2... d6 {[%clk 0:02:58.6]} 3. d4 {[%clk 0:02:59.7]} 3... f5 {[%clk 0:02:57.9]}
4. dxe5 {[%clk 0:02:48.8]} 4... fxe4 {[%clk 0:02:56.8]} 5. Ng5 {[%clk
0:02:46.2]} 5... d5 {[%clk 0:02:54.5]} 6. Nc3 {[%clk 0:02:36.7]} 6... c6 {[%clk
0:02:49.9]} 7. Ncxe4 {[%clk 0:02:24.2]} 7... dxe4 {[%clk 0:02:49]} 8. Qxd8+
{[%clk 0:02:23.5]} 8... Kxd8 {[%clk 0:02:48.5]} 9. Nf7+ {[%clk 0:02:24.4]} 9...
Ke8 {[%clk 0:02:48.3]} 10. Nxh8 {[%clk 0:02:25.3]} 10... Be6 {[%clk 0:02:46.7]}
11. h4 {[%clk 0:02:06.8]} 11... Nd7 {[%clk 0:02:45.8]} 12. Bf4 {[%clk
0:02:05.6]} 12... Bc5 {[%clk 0:02:32.8]} 13. h5 {[%clk 0:01:59]} 13... Bd4
{[%clk 0:02:18.3]} 14. O-O-O {[%clk 0:01:46]} 14... Bxf2 {[%clk 0:02:07.1]} 15.
h6 {[%clk 0:01:45]} 15... Kf8 {[%clk 0:01:47.6]} 16. Ng6+ {[%clk 0:01:41.8]}
16... Kf7 {[%clk 0:01:35.7]} 17. Nh4 {[%clk 0:01:40.5]} 17... g5 {[%clk
0:01:28.2]} 18. Bxg5 {[%clk 0:01:38.2]} 18... Nxe5 {[%clk 0:01:27.5]} 19. Be2
{[%clk 0:01:36.4]} 19... Nf6 {[%clk 0:01:24.1]} 20. Rhf1 {[%clk 0:01:33.4]}
20... e3 {[%clk 0:01:20.4]} 21. Rd4 {[%clk 0:01:22.7]} 21... Bf5 {[%clk
0:00:38.5]} 22. Nxf5 {[%clk 0:01:15.3]} 22... Kg6 {[%clk 0:00:38.1]} 23. Bxe3
{[%clk 0:01:14.2]} 23... Bxe3+ {[%clk 0:00:32.7]} 24. Nxe3 {[%clk 0:01:15.1]}
1-0

[Event "Early-Titled-Tuesday-Blitz-March-05-2024"]
[Site "Chess.com"]
[Date "2024.03.05"]
[Round "2"]
[White "OneTrickPony_82"]
[Black "DavidGavrilescu18"]
[Result "0-1"]
[WhiteElo "2528"]
[BlackElo "2758"]
[TimeControl "180+1"]
[EndTime "8:16:38 PST"]
[Termination "DavidGavrilescu18 won by resignation"]

1. d4 {[%clk 0:03:00.9]} 1... d5 {[%clk 0:02:59.8]} 2. c4 {[%clk 0:03:01]} 2...
e6 {[%clk 0:03:00.4]} 3. Nf3 {[%clk 0:03:01]} 3... Nf6 {[%clk 0:03:00.8]} 4. Nc3
{[%clk 0:03:01.1]} 4... Nbd7 {[%clk 0:03:00.6]} 5. cxd5 {[%clk 0:03:00.1]} 5...
exd5 {[%clk 0:03:01.5]} 6. Bg5 {[%clk 0:02:59.8]} 6... c6 {[%clk 0:03:01.6]} 7.
e3 {[%clk 0:02:59.6]} 7... h6 {[%clk 0:03:02.2]} 8. Bh4 {[%clk 0:02:59.2]} 8...
g5 {[%clk 0:03:02.6]} 9. Bg3 {[%clk 0:02:59.3]} 9... Nh5 {[%clk 0:03:03.3]} 10.
Bd3 {[%clk 0:02:58.4]} 10... Nxg3 {[%clk 0:03:03.7]} 11. hxg3 {[%clk 0:02:57.8]}
11... Bg7 {[%clk 0:03:04.6]} 12. Qc2 {[%clk 0:02:51.7]} 12... Nb6 {[%clk
0:03:04.9]} 13. O-O-O {[%clk 0:02:46.6]} 13... Be6 {[%clk 0:03:05.1]} 14. Kb1
{[%clk 0:02:45.4]} 14... Qe7 {[%clk 0:03:03.9]} 15. e4 {[%clk 0:02:42.2]} 15...
dxe4 {[%clk 0:02:56.7]} 16. Nxe4 {[%clk 0:02:40.6]} 16... O-O-O {[%clk 0:02:57]}
17. Rhe1 {[%clk 0:02:35.1]} 17... Qb4 {[%clk 0:02:42.3]} 18. Nc5 {[%clk
0:02:24.3]} 18... Bc4 {[%clk 0:02:25.6]} 19. Bf5+ {[%clk 0:02:07.5]} 19... Kb8
{[%clk 0:02:24.9]} 20. a3 {[%clk 0:02:05.4]} 20... Qb5 {[%clk 0:02:22.7]} 21.
Re7 {[%clk 0:01:42.7]} 21... Bxd4 {[%clk 0:02:02.9]} 22. Nd7+ {[%clk 0:01:08.2]}
22... Rxd7 {[%clk 0:01:52.4]} 23. Bxd7 {[%clk 0:01:04]} 23... Bf6 {[%clk
0:01:52.3]} 24. Re3 {[%clk 0:00:48.2]} 24... Rd8 {[%clk 0:01:51.4]} 25. Nd4
{[%clk 0:00:24.8]} 25... Bxd4 {[%clk 0:01:46.9]} 26. Rxd4 {[%clk 0:00:24.9]}
26... Rxd7 {[%clk 0:01:47.3]} 27. Re8+ {[%clk 0:00:18.5]} 27... Kc7 {[%clk
0:01:46.5]} 28. Qd2 {[%clk 0:00:08.2]} 28... Bd3+ {[%clk 0:01:42.3]} 29. Qxd3
{[%clk 0:00:03.4]} 29... Qxd3+ {[%clk 0:01:43.2]} 30. Rxd3 {[%clk 0:00:04]}
30... Rxd3 {[%clk 0:01:43.2]} 31. Re7+ {[%clk 0:00:04.6]} 31... Rd7 {[%clk
0:01:43.4]} 0-1

[Event "Early-Titled-Tuesday-Blitz-March-05-2024"]
[Site "Chess.com"]
[Date "2024.03.05"]
[Round "2"]
[White "StankovicIvan"]
[Black "Storne89"]
[Result "1-0"]
[WhiteElo "2522"]
[BlackElo "2707"]
[TimeControl "180+1"]
[EndTime "8:16:38 PST"]
[Termination "StankovicIvan won by resignation"]

1. e4 {[%clk 0:03:00.9]} 1... e5 {[%clk 0:02:55.3]} 2. d4 {[%clk 0:03:00.1]}
2... exd4 {[%clk 0:02:50.4]} 3. Qxd4 {[%clk 0:03:01]} 3... Nc6 {[%clk
0:02:50.1]} 4. Qe3 {[%clk 0:03:01.2]} 4... Nf6 {[%clk 0:02:50.8]} 5. Nc3 {[%clk
0:03:00.6]} 5... Bb4 {[%clk 0:02:51.2]} 6. Bd2 {[%clk 0:03:00.7]} 6... O-O
{[%clk 0:02:51.9]} 7. O-O-O {[%clk 0:03:01.1]} 7... Re8 {[%clk 0:02:52.6]} 8. f3
{[%clk 0:03:01.6]} 8... a5 {[%clk 0:02:30.9]} 9. Qg5 {[%clk 0:02:56.3]} 9... d6
{[%clk 0:02:20.9]} 10. h4 {[%clk 0:02:55.9]} 10... Be6 {[%clk 0:02:19.9]} 11. h5
{[%clk 0:02:53]} 11... h6 {[%clk 0:02:06.2]} 12. Qg3 {[%clk 0:02:52.7]} 12...
Kh8 {[%clk 0:02:00.3]} 13. Nh3 {[%clk 0:02:45]} 13... d5 {[%clk 0:01:46]} 14.
exd5 {[%clk 0:02:09.8]} 14... Nxd5 {[%clk 0:01:44.3]} 15. Nxd5 {[%clk 0:02:10]}
15... Bxd5 {[%clk 0:01:34.7]} 16. Nf4 {[%clk 0:01:57]} 16... Qd6 {[%clk
0:00:58.9]} 17. Bxb4 {[%clk 0:01:42.6]} 17... Nxb4 {[%clk 0:00:58.9]} 18. Bc4
{[%clk 0:01:35.8]} 18... c6 {[%clk 0:00:58.4]} 19. Ng6+ {[%clk 0:01:27.5]} 19...
Qxg6 {[%clk 0:00:54.8]} 20. hxg6 {[%clk 0:01:26.5]} 20... Bxc4 {[%clk
0:00:55.2]} 21. a3 {[%clk 0:01:22.8]} 21... Nd5 {[%clk 0:00:53.7]} 22. gxf7
{[%clk 0:01:19]} 22... Rf8 {[%clk 0:00:54.1]} 23. Qe5 {[%clk 0:01:11]} 23... Kh7
{[%clk 0:00:49.5]} 24. b3 {[%clk 0:01:10.6]} 24... Ba6 {[%clk 0:00:49.2]} 25.
Qf5+ {[%clk 0:01:09.2]} 25... Kh8 {[%clk 0:00:49.3]} 26. Qg6 {[%clk 0:01:07.4]}
26... Nf6 {[%clk 0:00:36.7]} 27. Rxh6+ {[%clk 0:01:06.5]} 27... gxh6 {[%clk
0:00:37.2]} 28. Qxf6+ {[%clk 0:01:06.8]} 28... Kh7 {[%clk 0:00:37.9]} 29. Rh1
{[%clk 0:01:06.6]} 1-0

[Event "Early-Titled-Tuesday-Blitz-March-05-2024"]
[Site "Chess.com"]
[Date "2024.03.05"]
[Round "2"]
[White "ChessLover0108"]
[Black "unagi64"]
[Result "1-0"]
[WhiteElo "2965"]
[BlackElo "2610"]
[TimeControl "180+1"]
[EndTime "8:16:39 PST"]
[Termination "ChessLover0108 won by resignation"]

1. d4 {[%clk 0:03:00.3]} 1... d6 {[%clk 0:03:00.2]} 2. Nf3 {[%clk 0:03:00.4]}
2... Nf6 {[%clk 0:03:00.7]} 3. c4 {[%clk 0:03:00.7]} 3... g6 {[%clk 0:03:00.9]}
4. Nc3 {[%clk 0:03:01.2]} 4... Bg7 {[%clk 0:03:01.5]} 5. e4 {[%clk 0:03:01.7]}
5... O-O {[%clk 0:03:02]} 6. Be2 {[%clk 0:03:02.5]} 6... e5 {[%clk 0:03:02.2]}
7. Be3 {[%clk 0:03:03.2]} 7... Na6 {[%clk 0:03:02]} 8. O-O {[%clk 0:03:03]} 8...
c6 {[%clk 0:03:02.1]} 9. d5 {[%clk 0:03:02.8]} 9... Ng4 {[%clk 0:03:02.1]} 10.
Bg5 {[%clk 0:03:03]} 10... f6 {[%clk 0:03:02.9]} 11. Bh4 {[%clk 0:03:03.7]}
11... c5 {[%clk 0:03:03.6]} 12. Ne1 {[%clk 0:03:04.3]} 12... h5 {[%clk
0:03:03.7]} 13. Nd3 {[%clk 0:03:04.1]} 13... Nh6 {[%clk 0:03:03.1]} 14. f3
{[%clk 0:03:04.1]} 14... Nf7 {[%clk 0:03:02.7]} 15. a3 {[%clk 0:03:03.3]} 15...
Bh6 {[%clk 0:03:02.8]} 16. Bf2 {[%clk 0:03:00.1]} 16... f5 {[%clk 0:03:02.6]}
17. b4 {[%clk 0:02:59.5]} 17... b6 {[%clk 0:03:02.9]} 18. bxc5 {[%clk
0:02:59.3]} 18... Nxc5 {[%clk 0:03:02.7]} 19. Nxc5 {[%clk 0:02:54]} 19... bxc5
{[%clk 0:03:03.6]} 20. Rb1 {[%clk 0:02:54.2]} 20... Ng5 {[%clk 0:03:01.9]} 21.
Qa4 {[%clk 0:02:48.6]} 21... fxe4 {[%clk 0:03:01.6]} 22. fxe4 {[%clk 0:02:30.5]}
22... Nf7 {[%clk 0:02:41.6]} 23. Kh1 {[%clk 0:02:21.4]} 23... Bd2 {[%clk
0:02:26.2]} 24. Qc2 {[%clk 0:01:42.3]} 24... Qg5 {[%clk 0:02:24.2]} 25. Nb5
{[%clk 0:01:34.9]} 25... Ba5 {[%clk 0:01:56.1]} 26. Nxd6 {[%clk 0:01:32]} 26...
Nxd6 {[%clk 0:01:51.4]} 27. Bxc5 {[%clk 0:01:32.6]} 27... Rxf1+ {[%clk
0:01:44.6]} 28. Rxf1 {[%clk 0:01:33.5]} 28... Bc7 {[%clk 0:01:40.3]} 29. Qa4
{[%clk 0:01:12.7]} 29... Qd8 {[%clk 0:01:38.5]} 30. Bxd6 {[%clk 0:01:12.4]}
30... Bxd6 {[%clk 0:01:29.5]} 31. c5 {[%clk 0:01:13]} 31... Bd7 {[%clk
0:01:19.2]} 32. Qa6 {[%clk 0:01:12.5]} 32... Bf8 {[%clk 0:01:08.1]} 33. Qxg6+
{[%clk 0:01:10.5]} 33... Bg7 {[%clk 0:01:08]} 34. Rf7 {[%clk 0:01:04.6]} 1-0